fUST/lending_fUST_20250930
["ID","MTS","AMOUNT","RATE_DAILY","PERIOD"]
[388450110,1759174242444,-480.0,0.00023031,2]
[388450112,1759174242454,-480.0,0.00023031,2]
[388450114,1759174242463,-480.0,0.00023031,2]
[388450117,1759174242472,-480.0,0.00023031,2]
[388450120,1759174242482,-497.05,0.00023031,2]
[388450123,1759174242492,-480.0,0.00023031,2]
[388450125,1759174242501,-480.0,0.00023031,2]
[388450127,1759174242511,-480.0,0.00023031,2]
[388450129,1759174242520,-480.0,0.00023031,2]
[388450131,1759174242530,-566.97,0.00023031,2]
[388450133,1759174242539,-480.0,0.00023031,2]
[388450136,1759174242548,-1726.29,0.00023031,2]
[388450139,1759174242558,-532.04,0.00023031,2]
[388450142,1759174242567,-548.49,0.00023031,2]
[388450144,1759174242576,-480.0,0.00023031,2]
[388450146,1759174242584,-480.0,0.00023031,2]
[388450149,1759174242593,-527.58,0.00023031,2]
[388450151,1759174242603,-1033.39,0.00023031,2]
[388450153,1759174242612,-480.0,0.00023031,2]
[388450155,1759174242621,-488.07,0.00023031,2]
[388450156,1759174242630,-593.82,0.00023031,2]
[388450158,1759174242640,-480.0,0.00023031,2]
[388450160,1759174242649,-647.67,0.00023031,2]
[388450162,1759174242658,-1639.85,0.00023031,2]
[388450164,1759174242667,-480.0,0.00023031,2]
[388450165,1759174242676,-480.0,0.00023031,2]
[388450167,1759174242685,-506.474,0.00023032,2]
[388450169,1759174242695,-628.0,0.00023051,2]
[388450171,1759174242703,-687.76291514,0.00023155,2]
[388450172,1759174242712,-296.9209673,0.00023157,2]
[388450173,1759174242722,-586.7981431,0.00023157,2]
[388450174,1759174242731,-586.7981431,0.00023157,2]
[388450175,1759174242740,-586.7981431,0.00023157,2]
[388450176,1759174242750,-1192.09632446,0.00023162,2]
[388450177,1759174242759,-500.0,0.00023171,2]
[388450178,1759174242768,-480.0,0.00023171,2]
[388450179,1759174242777,-538.85,0.00023171,2]
[388450180,1759174242786,-804.71,0.00023171,2]
[388450181,1759174242795,-1800.15,0.00023171,2]
[388450182,1759174242804,-162.29588017,0.00023171,2]
[388450183,1759174242813,-3605.49,0.00023171,2]
[388450184,1759174242822,-780.59,0.00023171,2]
[388450185,1759174242831,-542.0,0.00023171,2]
[388450186,1759174242840,-480.0,0.00023171,2]
[388450188,1759174242850,-480.0,0.00023171,2]
[388450189,1759174242860,-480.0,0.00023171,2]
[388450191,1759174242869,-480.0,0.00023171,2]
[388450193,1759174242878,-485.31,0.00023171,2]
[388450195,1759174242888,-288.0,0.0002318,2]
[388450197,1759174242897,-168.0,0.00023192,2]
[388450199,1759174242905,-480.0,0.00023201,2]
[388450200,1759174242915,-480.0,0.00023201,2]
[388450202,1759174242924,-480.0,0.00023201,2]
[388450204,1759174242933,-3260.26,0.00023201,2]
[388450206,1759174242942,-480.0,0.00023201,2]
[388450207,1759174242951,-480.0,0.00023201,2]
[388450209,1759174242960,-1248.7,0.00023201,2]
[388450211,1759174242969,-480.0,0.00023201,2]
[388450213,1759174242978,-881.53,0.00023201,2]
[388450215,1759174242986,-1699.71,0.00023201,2]
[388450217,1759174242995,-480.0,0.00023202,2]
[388450218,1759174243006,-480.0,0.00023202,2]
[388450220,1759174243015,-480.0,0.00023202,2]
[388450222,1759174243023,-480.0,0.00023202,2]
[388450224,1759174243032,-1260.14,0.00023202,2]
[388450226,1759174243041,-725.62,0.00023202,2]
[388450227,1759174243050,-480.0,0.00023202,2]
[388450229,1759174243059,-480.0,0.00023202,2]
[388450231,1759174243068,-524.36,0.00023202,2]
[388450232,1759174243077,-823.81,0.00023202,2]
[388450234,1759174243086,-1025.39,0.00023202,2]
[388450235,1759174243096,-1196.82,0.00023202,2]
[388450237,1759174243105,-480.0,0.00023202,2]
[388450238,1759174243114,-554.96,0.00023202,2]
[388450240,1759174243123,-1609.39,0.00023202,2]
[388450243,1759174243132,-480.0,0.00023202,2]
[388450246,1759174243141,-1717.09,0.00023202,2]
[388450248,1759174243151,-480.0,0.00023202,2]
[388450250,1759174243160,-480.0,0.00023202,2]
[388450251,1759174243169,-658.07,0.00023202,2]
[388450253,1759174243178,-480.0,0.00023202,2]
[388450254,1759174243187,-480.0,0.00023202,2]
[388450255,1759174243195,-1256.05,0.00023202,2]
[388450256,1759174243205,-483.34,0.00023202,2]
[388450257,1759174243219,-1158.71,0.00023202,2]
[388450258,1759174243228,-1816.01,0.00023202,2]
[388450259,1759174243236,-4455.28,0.00023202,2]
[388450260,1759174243246,-2040.14,0.00023202,2]
[388450261,1759174243254,-480.0,0.00023202,2]
[388450262,1759174243263,-480.0,0.00023202,2]
[388450263,1759174243271,-2979.18,0.00023202,2]
[388450264,1759174243280,-547.18,0.00023202,2]
[388450265,1759174243293,-151.0,0.00023203,2]
[388450266,1759174243302,-151.0,0.00023203,2]
[388450267,1759174243311,-500.0,0.00023203,2]
[388450268,1759174243320,-500.0,0.00023203,2]
[388450269,1759174243329,-151.0,0.00023203,2]
[388450270,1759174243338,-500.0,0.00023203,2]
[388450271,1759174243347,-151.0,0.00023203,2]
[388450272,1759174243356,-500.0,0.00023203,2]
[388450273,1759174243364,-480.0,0.00023203,2]
[388450274,1759174243374,-480.0,0.00023203,2]
[388450275,1759174243383,-465.09851054,0.00023203,2]
[388450276,1759174243391,-510.2,0.00023203,2]
[388450277,1759174243400,-480.0,0.00023203,2]
[388450278,1759174243409,-329.78960286,0.00023204,2]
[388450279,1759174243418,-480.0,0.00023204,2]
[388450280,1759174243428,-480.0,0.00023204,2]
[388450281,1759174243436,-480.0,0.00023204,2]
[388450282,1759174243445,-1104.37,0.00023204,2]
[388450283,1759174243454,-480.0,0.00023204,2]
[388450284,1759174243463,-480.0,0.00023204,2]
[388450285,1759174243471,-483.9,0.00023204,2]
[388450286,1759174243480,-480.0,0.00023204,2]
[388450287,1759174243489,-562.22,0.00023204,2]
[388450288,1759174243497,-593.73,0.00023204,2]
[388450289,1759174243506,-480.0,0.00023204,2]
[388450290,1759174243515,-929.79,0.00023204,2]
[388450291,1759174243524,-480.0,0.00023204,2]
[388450292,1759174243535,-925.49,0.00023204,2]
[388450293,1759174243544,-480.0,0.00023204,2]
[388450294,1759174243554,-1267.7,0.00023204,2]
[388450295,1759174243563,-893.97,0.00023204,2]
[388450296,1759174243574,-480.0,0.00023204,2]
[388450297,1759174243584,-480.0,0.00023204,2]
[388450298,1759174243595,-676.12,0.00023204,2]
[388450299,1759174243607,-480.0,0.00023204,2]
[388450300,1759174243617,-1157.89,0.00023204,2]
[388450301,1759174243627,-530.55,0.00023204,2]
[388450302,1759174243636,-488.59,0.00023204,2]
[388450303,1759174243645,-491.69,0.00023204,2]
[388450304,1759174243655,-480.0,0.00023204,2]
[388450305,1759174243665,-631.6,0.00023204,2]
[388450306,1759174243675,-480.0,0.00023204,2]
[388450307,1759174243686,-480.0,0.00023204,2]
[388450308,1759174243697,-501.43,0.00023204,2]
[388450309,1759174243706,-531.49,0.00023204,2]
[388450310,1759174243715,-848.37,0.00023204,2]
[388450311,1759174243724,-843.74,0.00023204,2]
[388450312,1759174243733,-480.0,0.00023204,2]
[388450313,1759174243742,-480.0,0.00023204,2]
[388450314,1759174243751,-480.0,0.00023204,2]
[388450315,1759174243760,-622.15,0.00023204,2]
[388450316,1759174243769,-480.0,0.00023204,2]
[388450317,1759174243778,-698.35,0.00023204,2]
[388450318,1759174243789,-480.0,0.00023204,2]
[388450319,1759174243799,-277.52773838,0.00023204,2]
[388450320,1759174243808,-480.0,0.00023204,2]
[388450321,1759174243817,-570.38,0.00023204,2]
[388450322,1759174243826,-480.0,0.00023204,2]
[388450323,1759174243835,-694.96,0.00023204,2]
[388450324,1759174243844,-817.93,0.00023204,2]
[388450325,1759174243853,-177.53462236,0.00023204,2]
[388450326,1759174243862,-1778.75,0.00023204,2]
[388450327,1759174243871,-978.31,0.00023204,2]
[388450328,1759174243880,-480.0,0.00023204,2]
[388450329,1759174243889,-1463.09,0.00023204,2]
[388450330,1759174243898,-480.0,0.00023204,2]
[388450331,1759174243908,-890.78,0.00023204,2]
[388450332,1759174243917,-480.0,0.00023204,2]
[388450333,1759174243927,-480.0,0.00023204,2]
[388450334,1759174243937,-538.72,0.00023204,2]
[388450335,1759174243948,-1101.45,0.00023204,2]
[388450336,1759174243958,-687.95,0.00023204,2]
[388450337,1759174243968,-1023.04,0.00023204,2]
[388450338,1759174243979,-480.0,0.00023204,2]
[388450339,1759174243989,-4281.31,0.00023204,2]
[388450340,1759174244001,-515.83,0.00023204,2]
[388450341,1759174244011,-654.96,0.00023204,2]
[388450342,1759174244020,-1901.85,0.00023204,2]
[388450343,1759174244029,-1045.19,0.00023204,2]
[388450344,1759174244039,-695.25,0.00023204,2]
[388450345,1759174244048,-480.0,0.00023204,2]
[388450346,1759174244057,-1028.52,0.00023204,2]
[388450347,1759174244066,-480.0,0.00023204,2]
[388450348,1759174244076,-701.68,0.00023204,2]
[388450349,1759174244087,-516.28,0.00023204,2]
[388450350,1759174244099,-480.0,0.00023204,2]
[388450351,1759174244111,-1814.89,0.00023204,2]
[388450352,1759174244120,-4231.06,0.00023204,2]
[388450353,1759174244130,-1539.91,0.00023204,2]
[388450354,1759174244140,-832.4,0.00023204,2]
[388450355,1759174244151,-549.87,0.00023204,2]
[388450356,1759174244160,-599.28,0.00023204,2]
[388450357,1759174244169,-576.7,0.00023204,2]
[388450358,1759174244178,-2243.63,0.00023204,2]
[388450359,1759174244187,-2010.74,0.00023204,2]
[388450360,1759174244196,-872.04,0.00023204,2]
[388450361,1759174244206,-620.04,0.00023204,2]
[388450362,1759174244221,-531.35,0.00023204,2]
[388450363,1759174244231,-500.0,0.00023204,2]
[388450364,1759174244240,-699.45,0.00023204,2]
[388450365,1759174244249,-4932.68,0.00023204,2]
[388450366,1759174244260,-1243.97,0.00023204,2]
[388450367,1759174244270,-480.0,0.00023204,2]
[388450368,1759174244282,-1686.63,0.00023204,2]
[388450369,1759174244292,-480.0,0.00023204,2]
[388450370,1759174244301,-729.64,0.00023204,2]
[388450371,1759174244310,-532.76,0.00023204,2]
[388450372,1759174244320,-480.0,0.00023204,2]
[388450373,1759174244511,-500.0,0.00023205,2]
[388450374,1759174244523,-500.0,0.00023205,2]
[388450375,1759174244532,-166.05039937,0.00023205,2]
[388450376,1759174244543,-500.0,0.00023205,2]
[388450377,1759174244552,-151.0,0.00023205,2]
[388450378,1759174244562,-151.0,0.00023205,2]
[388450379,1759174244571,-500.0,0.00023205,2]
[388450380,1759174244580,-1716.0,0.00023205,2]
[388450381,1759174244589,-151.0,0.00023205,2]
[388450382,1759174244599,-500.0,0.00023205,2]
[388450383,1759174244608,-500.0,0.00023205,2]
[388450384,1759174244618,-151.0,0.00023205,2]
[388450385,1759174244628,-282.45836097,0.00023205,2]
[388450386,1759174244637,-180.67429611,0.00023205,2]
[388450387,1759174244646,-500.0,0.00023205,2]
[388450388,1759174244655,-500.0,0.00023205,2]
[388450389,1759174244664,-154.48522388,0.00023205,2]
[388450390,1759174244674,-500.0,0.00023205,2]
[388450391,1759174244683,-507.9,0.00023205,2]
[388450392,1759174244693,-480.0,0.00023205,2]
[388450393,1759174244703,-480.0,0.00023205,2]
[388450394,1759174244714,-480.0,0.00023205,2]
[388450395,1759174244724,-480.0,0.00023205,2]
[388450396,1759174244733,-480.0,0.00023205,2]
[388450397,1759174244743,-480.0,0.00023205,2]
[388450398,1759174244752,-491.15,0.00023205,2]
[388450399,1759174244761,-480.0,0.00023205,2]
[388450400,1759174244771,-480.0,0.00023205,2]
[388450401,1759174244780,-484.4,0.00023205,2]
[388450402,1759174244790,-480.0,0.00023205,2]
[388450403,1759174244800,-480.0,0.00023205,2]
[388450404,1759174244809,-480.0,0.00023205,2]
[388450405,1759174244819,-493.89,0.00023205,2]
[388450406,1759174244828,-518.75,0.00023205,2]
[388450407,1759174244838,-480.0,0.00023205,2]
[388450408,1759174244849,-480.0,0.00023205,2]
[388450409,1759174244859,-480.0,0.00023205,2]
[388450410,1759174244868,-480.0,0.00023205,2]
[388450411,1759174244878,-480.0,0.00023205,2]
[388450412,1759174244887,-480.0,0.00023205,2]
[388450413,1759174244896,-480.0,0.00023205,2]
[388450414,1759174244906,-518.65,0.00023205,2]
[388450415,1759174244915,-492.41,0.00023205,2]
[388450416,1759174244925,-480.0,0.00023205,2]
[388450417,1759174244935,-480.0,0.00023205,2]
[388450418,1759174244944,-480.0,0.00023205,2]
[388450419,1759174244955,-480.0,0.00023205,2]
[388450420,1759174244964,-480.0,0.00023205,2]
[388450421,1759174244975,-480.0,0.00023205,2]
[388450422,1759174244985,-480.0,0.00023205,2]
[388450423,1759174244995,-607.32,0.00023205,2]
[388450424,1759174245004,-480.0,0.00023205,2]
[388450425,1759174245014,-480.0,0.00023205,2]
[388450426,1759174245023,-480.0,0.00023205,2]
[388450427,1759174245033,-480.0,0.00023205,2]
[388450428,1759174245042,-480.0,0.00023205,2]
[388450429,1759174245051,-480.0,0.00023205,2]
[388450430,1759174245060,-480.0,0.00023205,2]
[388450431,1759174245069,-480.0,0.00023205,2]
[388450432,1759174245078,-480.0,0.00023205,2]
[388450433,1759174245088,-480.0,0.00023205,2]
[388450434,1759174245098,-480.0,0.00023205,2]
[388450435,1759174245107,-480.0,0.00023205,2]
[388450436,1759174245116,-480.0,0.00023205,2]
[388450437,1759174245125,-480.0,0.00023205,2]
[388450438,1759174245136,-480.0,0.00023205,2]
[388450439,1759174245145,-560.46,0.00023205,2]
[388450440,1759174245154,-480.0,0.00023205,2]
[388450441,1759174245163,-662.68,0.00023205,2]
[388450442,1759174245172,-689.01,0.00023205,2]
[388450443,1759174245181,-480.0,0.00023205,2]
[388450444,1759174245191,-512.46,0.00023205,2]
[388450445,1759174245200,-480.0,0.00023205,2]
[388450446,1759174245214,-480.0,0.00023205,2]
[388450447,1759174245223,-858.89,0.00023205,2]
[388450448,1759174245233,-480.0,0.00023205,2]
[388450449,1759174245242,-493.02,0.00023205,2]
[388450450,1759174245251,-627.76,0.00023205,2]
[388450451,1759174245260,-480.0,0.00023205,2]
[388450452,1759174245270,-480.0,0.00023205,2]
[388450453,1759174245279,-480.0,0.00023205,2]
[388450454,1759174245291,-480.0,0.00023205,2]
[388450455,1759174245300,-480.0,0.00023205,2]
[388450456,1759174245310,-480.0,0.00023205,2]
[388450457,1759174245319,-480.0,0.00023205,2]
[388450458,1759174245329,-480.0,0.00023205,2]
[388450459,1759174245338,-480.0,0.00023205,2]
[388450460,1759174245347,-480.0,0.00023205,2]
[388450462,1759174245356,-480.0,0.00023205,2]
[388450463,1759174245365,-480.0,0.00023205,2]
[388450464,1759174245375,-611.07,0.00023205,2]
[388450465,1759174245384,-480.0,0.00023205,2]
[388450466,1759174245393,-1094.42,0.00023205,2]
[388450467,1759174245404,-480.0,0.00023205,2]
[388450468,1759174245413,-480.0,0.00023205,2]
[388450469,1759174245423,-480.0,0.00023205,2]
[388450470,1759174245432,-500.0,0.00023205,2]
[388450471,1759174245442,-480.0,0.00023205,2]
[388450472,1759174245451,-480.0,0.00023205,2]
[388450473,1759174245461,-480.0,0.00023205,2]
[388450474,1759174245470,-480.0,0.00023205,2]
[388450475,1759174245480,-480.0,0.00023205,2]
[388450476,1759174245488,-480.0,0.00023205,2]
[388450477,1759174245497,-562.99,0.00023205,2]
[388450478,1759174245507,-480.0,0.00023205,2]
[388450479,1759174245516,-480.0,0.00023205,2]
[388450480,1759174245525,-493.28,0.00023205,2]
[388450481,1759174245535,-480.0,0.00023205,2]
[388450482,1759174245543,-480.0,0.00023205,2]
[388450483,1759174245553,-480.0,0.00023205,2]
[388450484,1759174245563,-480.0,0.00023205,2]
[388450485,1759174245572,-480.0,0.00023205,2]
[388450486,1759174245583,-480.0,0.00023205,2]
[388450487,1759174245592,-244.15206638,0.00023205,2]
[388450488,1759174245601,-1243.02,0.00023205,2]
[388450489,1759174245611,-490.34,0.00023205,2]
[388450490,1759174245620,-256.37049974,0.00023205,2]
[388450491,1759174245629,-480.0,0.00023205,2]
[388450492,1759174245639,-480.0,0.00023205,2]
[388450493,1759174245649,-388.62084392,0.00023205,2]
[388450494,1759174245658,-480.0,0.00023205,2]
[388450495,1759174245668,-986.72,0.00023205,2]
[388450496,1759174245679,-815.27,0.00023205,2]
[388450497,1759174245687,-480.0,0.00023205,2]
[388450498,1759174245696,-480.0,0.00023205,2]
[388450499,1759174245705,-480.0,0.00023205,2]
[388450500,1759174245714,-480.0,0.00023205,2]
[388450501,1759174245723,-480.0,0.00023205,2]
[388450502,1759174245733,-480.0,0.00023205,2]
[388450503,1759174245742,-480.0,0.00023205,2]
[388450504,1759174245751,-480.0,0.00023205,2]
[388450505,1759174245760,-480.0,0.00023205,2]
[388450506,1759174245769,-203.28054906,0.00023205,2]
[388450507,1759174245778,-480.0,0.00023205,2]
[388450508,1759174245787,-480.0,0.00023205,2]
[388450509,1759174245796,-480.0,0.00023205,2]
[388450510,1759174245805,-486.38,0.00023205,2]
[388450511,1759174245814,-800.0,0.00023206,2]
[388450512,1759174245823,-800.0,0.00023231,2]
[388450513,1759174245833,-800.0,0.00023234,2]
[388450514,1759174245842,-800.0,0.00023238,2]
[388450515,1759174245852,-800.0,0.00023248,2]
[388450516,1759174245861,-800.0,0.00023261,2]
[388450517,1759174245871,-500.0,0.00023273,2]
[388450518,1759174245880,-431.25894735,0.00023273,2]
[388450519,1759174245890,-500.0,0.00023273,2]
[388450520,1759174245900,-175.00939999,0.00023273,2]
[388450521,1759174245910,-500.0,0.00023273,2]
[388450522,1759174245919,-500.0,0.00023273,2]
[388450523,1759174245928,-500.0,0.00023273,2]
[388450524,1759174245937,-500.0,0.00023273,2]
[388450525,1759174245947,-500.0,0.00023273,2]
[388450526,1759174245957,-509.86893301,0.00023273,2]
[388450527,1759174245967,-500.0,0.00023273,2]
[388450528,1759174245977,-500.0,0.00023273,2]
[388450529,1759174245987,-500.0,0.00023273,2]
[388450530,1759174245996,-500.0,0.00023273,2]
[388450531,1759174246005,-500.0,0.00023273,2]
[388450532,1759174246014,-500.0,0.00023273,2]
[388450533,1759174246024,-500.0,0.00023273,2]
[388450534,1759174246034,-500.0,0.00023273,2]
[388450535,1759174246043,-1000.0,0.00023287,5]
[388450536,1759174246052,-534.04266913,0.00023287,2]
[388450537,1759174246061,-168.0,0.00023299,2]
[388450538,1759174246070,-586.7981431,0.000233,2]
[388450539,1759174246079,-507.4512108,0.000233,2]
[388450540,1759174246088,-500.0,0.00023304,2]
[388450541,1759174246098,-151.0,0.00023304,2]
[388450542,1759174246108,-500.0,0.00023304,2]
[388450543,1759174246116,-151.0,0.00023304,2]
[388450545,1759174246127,-192.95031367,0.00023304,2]
[388450546,1759174246136,-151.0,0.00023304,2]
[388450547,1759174246147,-210.41710069,0.00023304,2]
[388450548,1759174246156,-480.0,0.00023304,2]
[388450549,1759174246166,-480.0,0.00023304,2]
[388450550,1759174246175,-480.0,0.00023304,2]
[388450551,1759174246185,-480.0,0.00023304,2]
[388450552,1759174246194,-480.0,0.00023304,2]
[388450553,1759174246203,-480.0,0.00023304,2]
[388450554,1759174246216,-480.0,0.00023304,2]
[388450555,1759174246226,-558.43,0.00023304,2]
[388450556,1759174246235,-480.0,0.00023304,2]
[388450557,1759174246244,-510.36,0.00023304,2]
[388450558,1759174246252,-493.34,0.00023304,2]
[388450559,1759174246262,-480.0,0.00023304,2]
[388450560,1759174246271,-480.0,0.00023304,2]
[388450561,1759174246281,-1935.38,0.00023304,2]
[388450562,1759174246292,-495.84,0.00023304,2]
[388450563,1759174246301,-480.0,0.00023304,2]
[388450564,1759174246313,-641.18,0.00023304,2]
[388450565,1759174246322,-151.0,0.00023304,7]
[388450566,1759174246333,-177.530435,0.00023304,7]
[388450567,1759174246342,-2264.347528,0.00023304,7]
[388450568,1759174246352,-2264.347528,0.00023304,7]
[388450569,1759174246362,-2264.347528,0.00023304,7]
[388450570,1759174246372,-2264.347528,0.00023304,7]
[388450571,1759174246382,-151.0,0.00023304,7]
[388450572,1759174246391,-151.0,0.00023304,7]
[388450573,1759174246400,-151.0,0.00023304,7]
[388450574,1759174246410,-151.0,0.00023304,7]
[388450575,1759174246419,-151.0,0.00023304,7]
[388450576,1759174246428,-151.0,0.00023304,7]
[388450577,1759174246438,-151.0,0.00023304,7]
[388450578,1759174246447,-151.0,0.00023304,7]
[388450579,1759174246456,-151.0,0.00023304,7]
[388450580,1759174246465,-152.79694186,0.00023304,7]
[388450581,1759174246474,-369.361182,0.00023304,7]
[388450582,1759174246483,-369.361182,0.00023304,7]
[388450583,1759174246492,-369.361182,0.00023304,7]
[388450584,1759174246502,-369.361182,0.00023304,7]
[388450585,1759174246512,-772.759636,0.00023304,7]
[388450586,1759174246522,-772.759636,0.00023304,7]
[388450587,1759174246531,-151.0,0.00023304,7]
[388450588,1759174246542,-772.759636,0.00023304,7]
[388450589,1759174246551,-772.759636,0.00023304,7]
[388450590,1759174246561,-151.0,0.00023304,7]
[388450591,1759174246570,-151.0,0.00023304,7]
[388450592,1759174246580,-151.0,0.00023304,7]
[388450593,1759174246590,-151.0,0.00023304,7]
[388450594,1759174246599,-510.07,0.00023305,2]
[388450595,1759174246609,-480.0,0.00023305,2]
[388450596,1759174246620,-480.0,0.00023305,2]
[388450597,1759174246632,-480.0,0.00023305,2]
[388450598,1759174246641,-480.0,0.00023305,2]
[388450599,1759174246650,-480.0,0.00023305,2]
[388450600,1759174246659,-480.0,0.00023305,2]
[388450601,1759174246668,-480.0,0.00023305,2]
[388450602,1759174246678,-497.05,0.00023305,2]
[388450603,1759174246687,-480.0,0.00023305,2]
[388450605,1759174246697,-480.0,0.00023305,2]
[388450607,1759174246706,-480.0,0.00023305,2]
[388450609,1759174246715,-480.0,0.00023305,2]
[388450611,1759174246724,-566.97,0.00023305,2]
[388450613,1759174246733,-480.0,0.00023305,2]
[388450615,1759174246742,-1726.29,0.00023305,2]
[388450617,1759174246751,-532.04,0.00023305,2]
[388450619,1759174246760,-548.49,0.00023305,2]
[388450621,1759174246769,-480.0,0.00023305,2]
[388450623,1759174246778,-480.0,0.00023305,2]
[388450625,1759174246787,-527.58,0.00023305,2]
[388450627,1759174246796,-1033.39,0.00023305,2]
[388450629,1759174246805,-480.0,0.00023305,2]
[388450631,1759174246814,-488.07,0.00023305,2]
[388450633,1759174246823,-593.82,0.00023305,2]
[388450635,1759174246833,-480.0,0.00023305,2]
[388450636,1759174246842,-647.67,0.00023305,2]
[388450638,1759174246851,-1639.85,0.00023305,2]
[388450640,1759174246860,-151.0,0.00023305,7]
[388450642,1759174246869,-151.0,0.00023305,7]
[388450644,1759174246878,-151.0,0.00023305,7]
[388450646,1759174246887,-151.0,0.00023305,7]
[388450648,1759174246897,-151.0,0.00023305,7]
[388450650,1759174246906,-151.0,0.00023305,7]
[388450652,1759174246915,-244.43081,0.00023305,7]
[388450654,1759174246924,-151.0,0.00023305,7]
[388450656,1759174246933,-480.0,0.00023305,2]
[388450658,1759174246944,-151.0,0.00023305,7]
[388450660,1759174246953,-151.0,0.00023305,7]
[388450662,1759174246962,-151.0,0.00023305,7]
[388450664,1759174246972,-151.0,0.00023305,7]
[388450665,1759174246981,-151.0,0.00023305,7]
[388450667,1759174246991,-151.0,0.00023305,7]
[388450669,1759174247000,-151.0,0.00023305,7]
[388450671,1759174247010,-151.0,0.00023305,7]
[388450673,1759174247019,-480.0,0.00023305,2]
[388450675,1759174247029,-401.230282,0.00023305,7]
[388450677,1759174247039,-401.230282,0.00023305,7]
[388450679,1759174247049,-401.230282,0.00023305,7]
[388450681,1759174247060,-401.230282,0.00023305,7]
[388450683,1759174247070,-151.0,0.00023305,7]
[388450685,1759174247079,-151.0,0.00023305,7]
[388450687,1759174247089,-298.945,0.00023305,7]
[388450689,1759174247098,-151.0,0.00023305,7]
[388450691,1759174247107,-151.0,0.00023305,7]
[388450693,1759174247115,-151.0,0.00023305,7]
[388450695,1759174247125,-151.0,0.00023305,7]
[388450697,1759174247134,-151.0,0.00023305,7]
[388450699,1759174247143,-151.0,0.00023305,7]
[388450701,1759174247152,-151.0,0.00023305,7]
[388450703,1759174247162,-151.0,0.00023305,7]
[388450705,1759174247171,-151.0,0.00023305,7]
[388450707,1759174247180,-151.0,0.00023305,7]
[388450709,1759174247192,-151.0,0.00023305,7]
[388450711,1759174247201,-151.0,0.00023305,7]
[388450713,1759174247214,-169.358262,0.00023305,7]
[388450714,1759174247222,-151.0,0.00023305,7]
[388450716,1759174247232,-169.358262,0.00023305,7]
[388450718,1759174247241,-169.358262,0.00023305,7]
[388450720,1759174247250,-169.358262,0.00023305,7]
[388450722,1759174247260,-151.0,0.00023305,7]
[388450724,1759174247269,-151.0,0.00023305,7]
[388450726,1759174247280,-151.0,0.00023305,7]
[388450728,1759174247290,-151.0,0.00023305,7]
[388450730,1759174247300,-151.0,0.00023305,7]
[388450732,1759174247309,-358.349785,0.00023305,7]
[388450734,1759174247318,-358.349785,0.00023305,7]
[388450736,1759174247327,-358.349785,0.00023305,7]
[388450738,1759174247338,-151.0,0.00023305,7]
[388450740,1759174247347,-358.349785,0.00023305,7]
[388450742,1759174247356,-151.0,0.00023305,7]